{"text_format":"3","workbook":"xlsx","n_sheets":1,"sheets":["Vonios pertvarkymo išlaidos"],"not_rendered":{"defined_names":3},"read":"whole","date_system":"1900"}

{"sheet":"Vonios pertvarkymo išlaidos","index":0,"n_rows":23,"n_cols":10,"rows_kept":23,"merged":[[1,1,2,3],[2,4,2,6],[2,7,2,9],[21,1,21,3],[21,4,21,6],[21,7,21,9],[22,1,22,3],[22,4,22,6],[22,7,22,9]]}
[null,"Vonios kambario pertvarkymo išlaidų darbalapis"]
[null,"PASTABA. Lentelės skirtumo stulpeliai parodys, ar faktinė suma viršijo planuojamą sumą. Raudoni skaičiai nurodo didesnę nei planuotą sumą (neigiama reikšmė), o juodi skaičiai nurodo mažesnę nei planuotą sumą (teigiama reikšmė). "]
[{"$nulls":4},"Vieneto kaina (EUR)",null,null,"Bendra kaina (EUR)"]
[null,"Sritis","Prekės","Kiekis","Apytikslė","Faktinė","Skirtumas","Apytikslė ","Faktinė ","Skirtumas "]
[null,"Vonia / dušas","Vonia, ketaus, 152 cm, standartinė",1,{"v":250,"d":"250.00 EUR"},{"$f":"RANDBETWEEN(E5+2,E5+20)","v":{"v":259,"d":"259.00 EUR"}},{"$f":"IFERROR(Išlaidos[[#This Row],[Apytikslė]]-Išlaidos[[#This Row],[Faktinė]], \"\")","v":{"v":-9,"d":"-9.00 EUR"}},{"$f":"IFERROR(Išlaidos[[#This Row],[Kiekis]]*Išlaidos[[#This Row],[Apytikslė]], \"\")","v":{"v":250,"d":"250.00 EUR"}},{"$f":"IFERROR(Išlaidos[[#This Row],[Kiekis]]*Išlaidos[[#This Row],[Faktinė]], \"\")","v":{"v":259,"d":"259.00 EUR"}},{"$f":"IFERROR(Išlaidos[[#This Row],[Apytikslė ]]-Išlaidos[[#This Row],[Faktinė ]], \"\")","v":{"v":-9,"d":"-9.00 EUR"}}]
[null,"Vonia / dušas","Dušo kabinos durys su vyriais, standartinės",1,{"v":200,"d":"200.00 EUR"},{"v":206,"d":"206.00 EUR"},{"$f":"IFERROR(Išlaidos[[#This Row],[Apytikslė]]-Išlaidos[[#This Row],[Faktinė]], \"\")","v":{"v":-6,"d":"-6.00 EUR"}},{"$f":"IFERROR(Išlaidos[[#This Row],[Kiekis]]*Išlaidos[[#This Row],[Apytikslė]], \"\")","v":{"v":200,"d":"200.00 EUR"}},{"$f":"IFERROR(Išlaidos[[#This Row],[Kiekis]]*Išlaidos[[#This Row],[Faktinė]], \"\")","v":{"v":206,"d":"206.00 EUR"}},{"$f":"IFERROR(Išlaidos[[#This Row],[Apytikslė ]]-Išlaidos[[#This Row],[Faktinė ]], \"\")","v":{"v":-6,"d":"-6.00 EUR"}}]
[null,"Vonia / dušas","Dušo galvutė, standartinė",1,{"v":50,"d":"50.00 EUR"},{"v":57,"d":"57.00 EUR"},{"$f":"IFERROR(Išlaidos[[#This Row],[Apytikslė]]-Išlaidos[[#This Row],[Faktinė]], \"\")","v":{"v":-7,"d":"-7.00 EUR"}},{"$f":"IFERROR(Išlaidos[[#This Row],[Kiekis]]*Išlaidos[[#This Row],[Apytikslė]], \"\")","v":{"v":50,"d":"50.00 EUR"}},{"$f":"IFERROR(Išlaidos[[#This Row],[Kiekis]]*Išlaidos[[#This Row],[Faktinė]], \"\")","v":{"v":57,"d":"57.00 EUR"}},{"$f":"IFERROR(Išlaidos[[#This Row],[Apytikslė ]]-Išlaidos[[#This Row],[Faktinė ]], \"\")","v":{"v":-7,"d":"-7.00 EUR"}}]
[null,"Vonia / dušas","Vonios siena, standartinė",1,{"v":200,"d":"200.00 EUR"},{"v":205,"d":"205.00 EUR"},{"$f":"IFERROR(Išlaidos[[#This Row],[Apytikslė]]-Išlaidos[[#This Row],[Faktinė]], \"\")","v":{"v":-5,"d":"-5.00 EUR"}},{"$f":"IFERROR(Išlaidos[[#This Row],[Kiekis]]*Išlaidos[[#This Row],[Apytikslė]], \"\")","v":{"v":200,"d":"200.00 EUR"}},{"$f":"IFERROR(Išlaidos[[#This Row],[Kiekis]]*Išlaidos[[#This Row],[Faktinė]], \"\")","v":{"v":205,"d":"205.00 EUR"}},{"$f":"IFERROR(Išlaidos[[#This Row],[Apytikslė ]]-Išlaidos[[#This Row],[Faktinė ]], \"\")","v":{"v":-5,"d":"-5.00 EUR"}}]
[null,"Spintelės","Pakabinama spintelė, 61 cm, prabangi",1,{"v":200,"d":"200.00 EUR"},{"v":211,"d":"211.00 EUR"},{"$f":"IFERROR(Išlaidos[[#This Row],[Apytikslė]]-Išlaidos[[#This Row],[Faktinė]], \"\")","v":{"v":-11,"d":"-11.00 EUR"}},{"$f":"IFERROR(Išlaidos[[#This Row],[Kiekis]]*Išlaidos[[#This Row],[Apytikslė]], \"\")","v":{"v":200,"d":"200.00 EUR"}},{"$f":"IFERROR(Išlaidos[[#This Row],[Kiekis]]*Išlaidos[[#This Row],[Faktinė]], \"\")","v":{"v":211,"d":"211.00 EUR"}},{"$f":"IFERROR(Išlaidos[[#This Row],[Apytikslė ]]-Išlaidos[[#This Row],[Faktinė ]], \"\")","v":{"v":-11,"d":"-11.00 EUR"}}]
[null,"Spintelės","Pastatoma spintelė, 76 cm, standartinė",2,{"v":100,"d":"100.00 EUR"},{"v":120,"d":"120.00 EUR"},{"$f":"IFERROR(Išlaidos[[#This Row],[Apytikslė]]-Išlaidos[[#This Row],[Faktinė]], \"\")","v":{"v":-20,"d":"-20.00 EUR"}},{"$f":"IFERROR(Išlaidos[[#This Row],[Kiekis]]*Išlaidos[[#This Row],[Apytikslė]], \"\")","v":{"v":200,"d":"200.00 EUR"}},{"$f":"IFERROR(Išlaidos[[#This Row],[Kiekis]]*Išlaidos[[#This Row],[Faktinė]], \"\")","v":{"v":240,"d":"240.00 EUR"}},{"$f":"IFERROR(Išlaidos[[#This Row],[Apytikslė ]]-Išlaidos[[#This Row],[Faktinė ]], \"\")","v":{"v":-40,"d":"-40.00 EUR"}}]
[null,"Stalviršiai","Keraminės plytelės, prabangios (kiekis metrais)",5,{"v":22.5,"d":"22.50 EUR"},{"v":33,"d":"33.00 EUR"},{"$f":"IFERROR(Išlaidos[[#This Row],[Apytikslė]]-Išlaidos[[#This Row],[Faktinė]], \"\")","v":{"v":-10.5,"d":"-10.50 EUR"}},{"$f":"IFERROR(Išlaidos[[#This Row],[Kiekis]]*Išlaidos[[#This Row],[Apytikslė]], \"\")","v":{"v":112.5,"d":"112.50 EUR"}},{"$f":"IFERROR(Išlaidos[[#This Row],[Kiekis]]*Išlaidos[[#This Row],[Faktinė]], \"\")","v":{"v":165,"d":"165.00 EUR"}},{"$f":"IFERROR(Išlaidos[[#This Row],[Apytikslė ]]-Išlaidos[[#This Row],[Faktinė ]], \"\")","v":{"v":-52.5,"d":"-52.50 EUR"}}]
[null,"Maišytuvai","Vonios maišytuvas, standartinis",1,{"v":90,"d":"90.00 EUR"},{"v":92,"d":"92.00 EUR"},{"$f":"IFERROR(Išlaidos[[#This Row],[Apytikslė]]-Išlaidos[[#This Row],[Faktinė]], \"\")","v":{"v":-2,"d":"-2.00 EUR"}},{"$f":"IFERROR(Išlaidos[[#This Row],[Kiekis]]*Išlaidos[[#This Row],[Apytikslė]], \"\")","v":{"v":90,"d":"90.00 EUR"}},{"$f":"IFERROR(Išlaidos[[#This Row],[Kiekis]]*Išlaidos[[#This Row],[Faktinė]], \"\")","v":{"v":92,"d":"92.00 EUR"}},{"$f":"IFERROR(Išlaidos[[#This Row],[Apytikslė ]]-Išlaidos[[#This Row],[Faktinė ]], \"\")","v":{"v":-2,"d":"-2.00 EUR"}}]
[null,"Maišytuvai","Dušo maišytuvas, vienos svirties, standartinis",1,{"v":115,"d":"115.00 EUR"},{"v":133,"d":"133.00 EUR"},{"$f":"IFERROR(Išlaidos[[#This Row],[Apytikslė]]-Išlaidos[[#This Row],[Faktinė]], \"\")","v":{"v":-18,"d":"-18.00 EUR"}},{"$f":"IFERROR(Išlaidos[[#This Row],[Kiekis]]*Išlaidos[[#This Row],[Apytikslė]], \"\")","v":{"v":115,"d":"115.00 EUR"}},{"$f":"IFERROR(Išlaidos[[#This Row],[Kiekis]]*Išlaidos[[#This Row],[Faktinė]], \"\")","v":{"v":133,"d":"133.00 EUR"}},{"$f":"IFERROR(Išlaidos[[#This Row],[Apytikslė ]]-Išlaidos[[#This Row],[Faktinė ]], \"\")","v":{"v":-18,"d":"-18.00 EUR"}}]
[null,"Maišytuvai","Kriauklės maišytuvas, standartinis",1,{"v":95,"d":"95.00 EUR"},{"v":110,"d":"110.00 EUR"},{"$f":"IFERROR(Išlaidos[[#This Row],[Apytikslė]]-Išlaidos[[#This Row],[Faktinė]], \"\")","v":{"v":-15,"d":"-15.00 EUR"}},{"$f":"IFERROR(Išlaidos[[#This Row],[Kiekis]]*Išlaidos[[#This Row],[Apytikslė]], \"\")","v":{"v":95,"d":"95.00 EUR"}},{"$f":"IFERROR(Išlaidos[[#This Row],[Kiekis]]*Išlaidos[[#This Row],[Faktinė]], \"\")","v":{"v":110,"d":"110.00 EUR"}},{"$f":"IFERROR(Išlaidos[[#This Row],[Apytikslė ]]-Išlaidos[[#This Row],[Faktinė ]], \"\")","v":{"v":-15,"d":"-15.00 EUR"}}]
[null,"Grindys","Keramikinė plytelė, standartinė (kiekis kvadratiniais metrais)",35,{"v":12,"d":"12.00 EUR"},{"v":30,"d":"30.00 EUR"},{"$f":"IFERROR(Išlaidos[[#This Row],[Apytikslė]]-Išlaidos[[#This Row],[Faktinė]], \"\")","v":{"v":-18,"d":"-18.00 EUR"}},{"$f":"IFERROR(Išlaidos[[#This Row],[Kiekis]]*Išlaidos[[#This Row],[Apytikslė]], \"\")","v":{"v":420,"d":"420.00 EUR"}},{"$f":"IFERROR(Išlaidos[[#This Row],[Kiekis]]*Išlaidos[[#This Row],[Faktinė]], \"\")","v":{"v":1050,"d":"1,050.00 EUR"}},{"$f":"IFERROR(Išlaidos[[#This Row],[Apytikslė ]]-Išlaidos[[#This Row],[Faktinė ]], \"\")","v":{"v":-630,"d":"-630.00 EUR"}}]
[null,"Įrankiai","Rankšluosčio laikiklis, standartinis",2,{"v":15,"d":"15.00 EUR"},{"v":17,"d":"17.00 EUR"},{"$f":"IFERROR(Išlaidos[[#This Row],[Apytikslė]]-Išlaidos[[#This Row],[Faktinė]], \"\")","v":{"v":-2,"d":"-2.00 EUR"}},{"$f":"IFERROR(Išlaidos[[#This Row],[Kiekis]]*Išlaidos[[#This Row],[Apytikslė]], \"\")","v":{"v":30,"d":"30.00 EUR"}},{"$f":"IFERROR(Išlaidos[[#This Row],[Kiekis]]*Išlaidos[[#This Row],[Faktinė]], \"\")","v":{"v":34,"d":"34.00 EUR"}},{"$f":"IFERROR(Išlaidos[[#This Row],[Apytikslė ]]-Išlaidos[[#This Row],[Faktinė ]], \"\")","v":{"v":-4,"d":"-4.00 EUR"}}]
[null,"Įrankiai","Tualetinio popieriaus laikiklis",1,{"v":10,"d":"10.00 EUR"},{"v":25,"d":"25.00 EUR"},{"$f":"IFERROR(Išlaidos[[#This Row],[Apytikslė]]-Išlaidos[[#This Row],[Faktinė]], \"\")","v":{"v":-15,"d":"-15.00 EUR"}},{"$f":"IFERROR(Išlaidos[[#This Row],[Kiekis]]*Išlaidos[[#This Row],[Apytikslė]], \"\")","v":{"v":10,"d":"10.00 EUR"}},{"$f":"IFERROR(Išlaidos[[#This Row],[Kiekis]]*Išlaidos[[#This Row],[Faktinė]], \"\")","v":{"v":25,"d":"25.00 EUR"}},{"$f":"IFERROR(Išlaidos[[#This Row],[Apytikslė ]]-Išlaidos[[#This Row],[Faktinė ]], \"\")","v":{"v":-15,"d":"-15.00 EUR"}}]
[null,"Apšvietimas","Įleidžiami šviestuvai, standartiniai",4,{"v":25,"d":"25.00 EUR"},{"v":45,"d":"45.00 EUR"},{"$f":"IFERROR(Išlaidos[[#This Row],[Apytikslė]]-Išlaidos[[#This Row],[Faktinė]], \"\")","v":{"v":-20,"d":"-20.00 EUR"}},{"$f":"IFERROR(Išlaidos[[#This Row],[Kiekis]]*Išlaidos[[#This Row],[Apytikslė]], \"\")","v":{"v":100,"d":"100.00 EUR"}},{"$f":"IFERROR(Išlaidos[[#This Row],[Kiekis]]*Išlaidos[[#This Row],[Faktinė]], \"\")","v":{"v":180,"d":"180.00 EUR"}},{"$f":"IFERROR(Išlaidos[[#This Row],[Apytikslė ]]-Išlaidos[[#This Row],[Faktinė ]], \"\")","v":{"v":-80,"d":"-80.00 EUR"}}]
[null,"Kriauklės","Klozetas, standartinis",2,{"v":60,"d":"60.00 EUR"},{"v":78,"d":"78.00 EUR"},{"$f":"IFERROR(Išlaidos[[#This Row],[Apytikslė]]-Išlaidos[[#This Row],[Faktinė]], \"\")","v":{"v":-18,"d":"-18.00 EUR"}},{"$f":"IFERROR(Išlaidos[[#This Row],[Kiekis]]*Išlaidos[[#This Row],[Apytikslė]], \"\")","v":{"v":120,"d":"120.00 EUR"}},{"$f":"IFERROR(Išlaidos[[#This Row],[Kiekis]]*Išlaidos[[#This Row],[Faktinė]], \"\")","v":{"v":156,"d":"156.00 EUR"}},{"$f":"IFERROR(Išlaidos[[#This Row],[Apytikslė ]]-Išlaidos[[#This Row],[Faktinė ]], \"\")","v":{"v":-36,"d":"-36.00 EUR"}}]
[null,"Kita",null,1,{"v":20,"d":"20.00 EUR"},{"v":40,"d":"40.00 EUR"},{"$f":"IFERROR(Išlaidos[[#This Row],[Apytikslė]]-Išlaidos[[#This Row],[Faktinė]], \"\")","v":{"v":-20,"d":"-20.00 EUR"}},{"$f":"IFERROR(Išlaidos[[#This Row],[Kiekis]]*Išlaidos[[#This Row],[Apytikslė]], \"\")","v":{"v":20,"d":"20.00 EUR"}},{"$f":"IFERROR(Išlaidos[[#This Row],[Kiekis]]*Išlaidos[[#This Row],[Faktinė]], \"\")","v":{"v":40,"d":"40.00 EUR"}},{"$f":"IFERROR(Išlaidos[[#This Row],[Apytikslė ]]-Išlaidos[[#This Row],[Faktinė ]], \"\")","v":{"v":-20,"d":"-20.00 EUR"}}]
[null,"Tarpinė suma",null,null,{"$f":"SUBTOTAL(109,Išlaidos[Apytikslė])","v":{"v":1464.5,"d":"1,464.50 EUR"}},{"$f":"SUBTOTAL(109,Išlaidos[Faktinė])","v":{"v":1661,"d":"1,661.00 EUR"}},{"$f":"SUBTOTAL(109,Išlaidos[Skirtumas])","v":{"v":-196.5,"d":"-196.50 EUR"}},{"$f":"SUBTOTAL(109,Išlaidos[[Apytikslė ]])","v":{"v":2212.5,"d":"2,212.50 EUR"}},{"$f":"SUBTOTAL(109,Išlaidos[[Faktinė ]])","v":{"v":3163,"d":"3,163.00 EUR"}},{"$f":"SUBTOTAL(109,Išlaidos[[Skirtumas ]])","v":{"v":-950.5,"d":"-950.50 EUR"}}]
[null,"Nenumatytos išlaidos (pridėti maždaug 30 %)",null,null,{"$f":"IFERROR(Išlaidos[[#Totals],[Apytikslė]]*0.3, \"\")","v":{"v":439.34999999999997,"d":"439.35 EUR"}},null,null,{"$f":"IFERROR(Išlaidos[[#Totals],[Apytikslė ]]*0.3, \"\")","v":{"v":663.75,"d":"663.75 EUR"}}]
[null,"Bendros išlaidos",null,null,{"$f":"IFERROR(SUM(E21:E21), \"\")","v":{"v":1464.5,"d":"1,464.50 EUR"}},null,null,{"$f":"IFERROR(SUM(Išlaidos[[#Totals],[Apytikslė ]],Perteklius), \"\")","v":{"v":2876.25,"d":"2,876.25 EUR"}}]